[Event "December 12 Early 2023"]
[Site "https://www.chess.com"]
[Date "2023.12.12"]
[Round "7"]
[White "Gontcharov, Vladislav"]
[Black "Pham, Le Thao Nguyen"]
[Result "1-0"]
[Board "69"]
[TimeControl "180+1"]
[WhiteFideId "4123492"]
[BlackFideId "12401226"]
[WhiteElo "2657"]
[BlackElo "2527"]
[WhiteTeam "RUS"]
[BlackTeam "VIE"]
[WhiteClock "0:00:05"]
[BlackClock "0:00:00"]

1. d4 {[%clk 0:03:00]}  Nf6 {[%clk 0:02:45]} 2. c4 {[%clk 0:03:00]}  c6 {[%clk 0:02:44]} 3. Nf3 {[%clk 0:02:59]}  d5 {[%clk 0:02:45]} 4. e3 {[%clk 0:02:57]}  Bg4 {[%clk 0:02:44]} 5. Nc3 {[%clk 0:02:55]}  e6 {[%clk 0:02:44]} 6. h3 {[%clk 0:02:54]}  Bh5 {[%clk 0:02:43]} 7. g4 {[%clk 0:02:53]}  Bg6 {[%clk 0:02:43]} 8. Ne5 {[%clk 0:02:53]}  Nbd7 {[%clk 0:02:40]} 9. Nxg6 {[%clk 0:02:48]}  hxg6 {[%clk 0:02:40]} 10. Qb3 {[%clk 0:02:44]}  Qb6 {[%clk 0:02:38]} 11. Qxb6 {[%clk 0:02:35]}  axb6 {[%clk 0:02:37]} 12. Rg1 {[%clk 0:02:34]}  Bd6 {[%clk 0:02:05]} 13. cxd5 {[%clk 0:02:32]}  exd5 {[%clk 0:02:05]} 14. f3 {[%clk 0:02:30]}  O-O-O {[%clk 0:01:54]} 15. a4 {[%clk 0:02:20]}  Rde8 {[%clk 0:01:48]} 16. Kf2 {[%clk 0:02:19]}  Kc7 {[%clk 0:01:38]} 17. Bd2 {[%clk 0:02:17]}  g5 {[%clk 0:01:26]} 18. Rc1 {[%clk 0:02:02]}  Kb8 {[%clk 0:01:24]} 19. Bg2 {[%clk 0:01:59]}  Nf8 {[%clk 0:01:13]} 20. Na2 {[%clk 0:01:55]}  Ne6 {[%clk 0:01:05]} 21. b4 {[%clk 0:01:50]}  Re7 {[%clk 0:01:02]} 22. Rgd1 {[%clk 0:01:35]}  Rhe8 {[%clk 0:01:01]} 23. Bf1 {[%clk 0:01:35]}  Nd7 {[%clk 0:00:47]} 24. Rb1 {[%clk 0:01:31]}  g6 {[%clk 0:00:47]} 25. Bd3 {[%clk 0:01:26]}  Ng7 {[%clk 0:00:39]} 26. e4 {[%clk 0:01:14]}  Bf4 {[%clk 0:00:37]} 27. Bc3 {[%clk 0:01:13]}  dxe4 {[%clk 0:00:33]} 28. fxe4 {[%clk 0:01:12]}  f5 {[%clk 0:00:33]} 29. e5 {[%clk 0:01:05]}  Ne6 {[%clk 0:00:29]} 30. gxf5 {[%clk 0:00:57]}  gxf5 {[%clk 0:00:29]} 31. Bxf5 {[%clk 0:00:57]}  Nc7 {[%clk 0:00:30]} 32. Bxd7 {[%clk 0:00:56]}  Rxd7 {[%clk 0:00:29]} 33. Kf3 {[%clk 0:00:47]}  Nd5 {[%clk 0:00:28]} 34. Bd2 {[%clk 0:00:46]}  Rh7 {[%clk 0:00:27]} 35. Bxf4 {[%clk 0:00:35]}  Rf8 {[%clk 0:00:27]} 36. Kg3 {[%clk 0:00:19]}  gxf4+ {[%clk 0:00:25]} 37. Kh2 {[%clk 0:00:18]}  f3 {[%clk 0:00:22]} 38. Rb3 {[%clk 0:00:15]}  Rg7 {[%clk 0:00:16]} 39. Nc1 {[%clk 0:00:12]}  f2 {[%clk 0:00:10]} 40. Rf1 {[%clk 0:00:11]}  Rf4 {[%clk 0:00:10]} 41. Ne2 {[%clk 0:00:08]}  Rf8 {[%clk 0:00:03]} 42. Rg3 {[%clk 0:00:08]}  Rgf7 {[%clk 0:00:03]} 43. b5 {[%clk 0:00:04]}  Kc7 {[%clk 0:00:02]} 44. bxc6 {[%clk 0:00:04]}  bxc6 {[%clk 0:00:03]} 45. h4 {[%clk 0:00:04]}  Kd7 {[%clk 0:00:03]} 46. Kg2 {[%clk 0:00:04]}  Ke6 {[%clk 0:00:00]} 47. h5 {[%clk 0:00:05]} 1-0

[Event "December 12 Early 2023"]
[Site "https://www.chess.com"]
[Date "2023.12.12"]
[Round "7"]
[White "Borgaonkar Akshay"]
[Black "Play, Gilles"]
[Result "1-0"]
[Board "70"]
[TimeControl "180+1"]
[WhiteFideId "25639110"]
[BlackFideId "45130892"]
[WhiteElo "2617"]
[BlackElo "2523"]
[WhiteTeam "IND"]
[BlackTeam "FRA"]
[WhiteClock "0:02:44"]
[BlackClock "0:02:11"]

1. e4 {[%clk 0:03:00]}  c5 {[%clk 0:02:55]} 2. Nf3 {[%clk 0:03:01]}  Nf6 {[%clk 0:02:55]} 3. Nc3 {[%clk 0:02:56]}  d6 {[%clk 0:02:51]} 4. d4 {[%clk 0:02:52]}  cxd4 {[%clk 0:02:51]} 5. Nxd4 {[%clk 0:02:53]}  g6 {[%clk 0:02:47]} 6. f4 {[%clk 0:02:46]}  Bg7 {[%clk 0:02:46]} 7. e5 {[%clk 0:02:44]}  dxe5 {[%clk 0:02:44]} 8. fxe5 {[%clk 0:02:45]}  Ng4 {[%clk 0:02:17]} 9. Bb5+ {[%clk 0:02:44]}  Kf8 {[%clk 0:02:17]} 10. Ne6+ {[%clk 0:02:44]}  fxe6 {[%clk 0:02:13]} 11. Qxd8+ {[%clk 0:02:45]}  Kf7 {[%clk 0:02:13]} 12. O-O+ {[%clk 0:02:46]}  Bf6 {[%clk 0:02:11]} 13. Qxh8 {[%clk 0:02:44]} 1-0

[Event "December 12 Early 2023"]
[Site "https://www.chess.com"]
[Date "2023.12.12"]
[Round "7"]
[White "Spata, German"]
[Black "Lehtosaari, Mauri"]
[Result "1-0"]
[Board "72"]
[TimeControl "180+1"]
[WhiteFideId "113026"]
[BlackFideId "501999"]
[WhiteElo "2609"]
[BlackElo "2489"]
[WhiteTeam "ARG"]
[BlackTeam "FIN"]
[WhiteClock "0:00:03"]
[BlackClock "0:00:00"]

1. Nf3 {[%clk 0:02:56]}  d5 {[%clk 0:02:59]} 2. b3 {[%clk 0:02:56]}  Nf6 {[%clk 0:02:59]} 3. Bb2 {[%clk 0:02:56]}  Bf5 {[%clk 0:02:59]} 4. e3 {[%clk 0:02:56]}  e6 {[%clk 0:03:00]} 5. c4 {[%clk 0:02:55]}  Be7 {[%clk 0:03:00]} 6. cxd5 {[%clk 0:02:55]}  exd5 {[%clk 0:02:59]} 7. Be2 {[%clk 0:02:55]}  c6 {[%clk 0:02:58]} 8. O-O {[%clk 0:02:55]}  O-O {[%clk 0:02:58]} 9. d3 {[%clk 0:02:56]}  h6 {[%clk 0:02:58]} 10. a3 {[%clk 0:02:56]}  Nbd7 {[%clk 0:02:58]} 11. Re1 {[%clk 0:02:56]}  Re8 {[%clk 0:02:57]} 12. Nbd2 {[%clk 0:02:56]}  Nc5 {[%clk 0:02:56]} 13. Qc2 {[%clk 0:02:56]}  Ne6 {[%clk 0:02:35]} 14. b4 {[%clk 0:02:53]}  Bh7 {[%clk 0:02:31]} 15. Bc3 {[%clk 0:02:47]}  Rc8 {[%clk 0:02:18]} 16. Qb2 {[%clk 0:02:43]}  Rf8 {[%clk 0:02:13]} 17. a4 {[%clk 0:02:39]}  Ne8 {[%clk 0:02:13]} 18. Nd4 {[%clk 0:02:33]}  Bf6 {[%clk 0:02:01]} 19. N2f3 {[%clk 0:02:30]}  Nxd4 {[%clk 0:01:59]} 20. Bxd4 {[%clk 0:02:30]}  Bxd4 {[%clk 0:01:58]} 21. Qxd4 {[%clk 0:02:29]}  a6 {[%clk 0:01:53]} 22. Rec1 {[%clk 0:02:29]}  Nd6 {[%clk 0:01:51]} 23. h3 {[%clk 0:02:16]}  Re8 {[%clk 0:01:48]} 24. Rab1 {[%clk 0:02:15]}  Qe7 {[%clk 0:01:40]} 25. Qb2 {[%clk 0:02:07]}  Nf5 {[%clk 0:01:35]} 26. Nd4 {[%clk 0:01:53]}  Nxe3 {[%clk 0:01:21]} 27. fxe3 {[%clk 0:01:53]}  Qxe3+ {[%clk 0:01:22]} 28. Kh1 {[%clk 0:01:51]}  Bxd3 {[%clk 0:01:17]} 29. Rc3 {[%clk 0:01:13]}  Qxd4 {[%clk 0:01:15]} 30. Rxd3 {[%clk 0:01:10]}  Qxb2 {[%clk 0:00:51]} 31. Rxb2 {[%clk 0:01:10]}  Re4 {[%clk 0:00:50]} 32. Bf3 {[%clk 0:01:00]}  Rc4 {[%clk 0:00:48]} 33. Re3 {[%clk 0:00:50]}  Kf8 {[%clk 0:00:48]} 34. Be2 {[%clk 0:00:43]}  Rd4 {[%clk 0:00:42]} 35. b5 {[%clk 0:00:38]}  Rxa4 {[%clk 0:00:28]} 36. bxa6 {[%clk 0:00:39]}  bxa6 {[%clk 0:00:27]} 37. Reb3 {[%clk 0:00:27]}  a5 {[%clk 0:00:22]} 38. Rb7 {[%clk 0:00:25]}  Re4 {[%clk 0:00:18]} 39. Bg4 {[%clk 0:00:20]}  Rce8 {[%clk 0:00:17]} 40. Rc7 {[%clk 0:00:18]}  Rc4 {[%clk 0:00:13]} 41. Rbb7 {[%clk 0:00:16]}  Rf4 {[%clk 0:00:13]} 42. Rxc6 {[%clk 0:00:15]}  Ra8 {[%clk 0:00:11]} 43. Rd6 {[%clk 0:00:11]}  d4 {[%clk 0:00:10]} 44. Rbd7 {[%clk 0:00:10]}  a4 {[%clk 0:00:09]} 45. Rxd4 {[%clk 0:00:10]}  Rxd4 {[%clk 0:00:10]} 46. Rxd4 {[%clk 0:00:11]}  a3 {[%clk 0:00:10]} 47. Rd1 {[%clk 0:00:11]}  g6 {[%clk 0:00:10]} 48. Bf3 {[%clk 0:00:10]}  Ra7 {[%clk 0:00:10]} 49. Kg1 {[%clk 0:00:08]}  Ke7 {[%clk 0:00:11]} 50. Kf2 {[%clk 0:00:09]}  Ke6 {[%clk 0:00:10]} 51. Bd5+ {[%clk 0:00:05]}  Kf6 {[%clk 0:00:11]} 52. Ke3 {[%clk 0:00:04]}  Ra5 {[%clk 0:00:09]} 53. Ba2 {[%clk 0:00:03]}  Ke7 {[%clk 0:00:08]} 54. Rd5 {[%clk 0:00:02]}  Rxd5 {[%clk 0:00:06]} 55. Bxd5 {[%clk 0:00:02]}  f6 {[%clk 0:00:06]} 56. Kf4 {[%clk 0:00:02]}  Kd6 {[%clk 0:00:06]} 57. Ba2 {[%clk 0:00:02]}  h5 {[%clk 0:00:06]} 58. g3 {[%clk 0:00:02]}  Kc5 {[%clk 0:00:05]} 59. Ke4 {[%clk 0:00:02]}  Kd6 {[%clk 0:00:04]} 60. h4 {[%clk 0:00:02]}  g5 {[%clk 0:00:03]} 61. Kf5 {[%clk 0:00:02]}  gxh4 {[%clk 0:00:03]} 62. gxh4 {[%clk 0:00:02]}  Ke7 {[%clk 0:00:04]} 63. Kg6 {[%clk 0:00:02]}  Kf8 {[%clk 0:00:05]} 64. Kxf6 {[%clk 0:00:02]}  Ke8 {[%clk 0:00:04]} 65. Kg6 {[%clk 0:00:02]}  Kf8 {[%clk 0:00:05]} 66. Kh6 {[%clk 0:00:02]}  Ke7 {[%clk 0:00:03]} 67. Kxh5 {[%clk 0:00:02]}  Kf6 {[%clk 0:00:03]} 68. Kh6 {[%clk 0:00:03]}  Ke7 {[%clk 0:00:00]} 69. Kg7 {[%clk 0:00:03]} 1-0

[Event "December 12 Early 2023"]
[Site "https://www.chess.com"]
[Date "2023.12.12"]
[Round "7"]
[White "Kavyev, Ruslan"]
[Black "Bazilius, Augustinas"]
[Result "0-1"]
[Board "73"]
[TimeControl "180+1"]
[WhiteFideId "34110981"]
[BlackFideId "12832251"]
[WhiteElo "2608"]
[BlackElo "2437"]
[WhiteTeam "RUS"]
[BlackTeam "LTU"]
[WhiteClock "0:01:24"]
[BlackClock "0:00:07"]

1. e4 {[%clk 0:02:50]}  c5 {[%clk 0:02:58]} 2. Nf3 {[%clk 0:02:47]}  d6 {[%clk 0:02:59]} 3. d4 {[%clk 0:02:45]}  cxd4 {[%clk 0:03:00]} 4. Nxd4 {[%clk 0:02:46]}  Nf6 {[%clk 0:03:00]} 5. Nc3 {[%clk 0:02:47]}  Nc6 {[%clk 0:02:59]} 6. Bc4 {[%clk 0:02:46]}  a6 {[%clk 0:02:56]} 7. Nxc6 {[%clk 0:02:46]}  bxc6 {[%clk 0:02:56]} 8. e5 {[%clk 0:02:47]}  d5 {[%clk 0:02:30]} 9. exf6 {[%clk 0:02:44]}  dxc4 {[%clk 0:02:30]} 10. Qxd8+ {[%clk 0:02:45]}  Kxd8 {[%clk 0:02:31]} 11. fxg7 {[%clk 0:02:33]}  Bxg7 {[%clk 0:02:31]} 12. Bd2 {[%clk 0:02:32]}  Kc7 {[%clk 0:02:30]} 13. O-O-O {[%clk 0:02:32]}  Rd8 {[%clk 0:02:25]} 14. Rhe1 {[%clk 0:02:31]}  Be6 {[%clk 0:02:17]} 15. Bf4+ {[%clk 0:02:28]}  Kb6 {[%clk 0:01:57]} 16. Be5 {[%clk 0:02:29]}  Bh6+ {[%clk 0:01:50]} 17. Kb1 {[%clk 0:02:26]}  Bd2 {[%clk 0:01:43]} 18. Rf1 {[%clk 0:02:14]}  Bxc3 {[%clk 0:01:43]} 19. Bxc3 {[%clk 0:02:13]}  Rd5 {[%clk 0:01:39]} 20. Kc1 {[%clk 0:02:08]}  Rad8 {[%clk 0:01:38]} 21. Rde1 {[%clk 0:02:09]}  c5 {[%clk 0:01:25]} 22. f4 {[%clk 0:02:06]}  Kc6 {[%clk 0:01:21]} 23. h3 {[%clk 0:02:01]}  h5 {[%clk 0:01:19]} 24. a3 {[%clk 0:01:54]}  R8d7 {[%clk 0:01:08]} 25. Re3 {[%clk 0:01:51]}  h4 {[%clk 0:00:44]} 26. Re5 {[%clk 0:01:38]}  Rxe5 {[%clk 0:00:33]} 27. fxe5 {[%clk 0:01:39]}  Bd5 {[%clk 0:00:34]} 28. Rg1 {[%clk 0:01:38]}  Rd8 {[%clk 0:00:28]} 29. Be1 {[%clk 0:01:38]}  Rg8 {[%clk 0:00:28]} 30. Bxh4 {[%clk 0:01:38]}  Rxg2 {[%clk 0:00:28]} 31. Re1 {[%clk 0:01:33]}  Rh2 {[%clk 0:00:26]} 32. Bxe7 {[%clk 0:01:33]}  Rxh3 {[%clk 0:00:26]} 33. Bd6 {[%clk 0:01:26]}  Rh2 {[%clk 0:00:20]} 34. Bb8 {[%clk 0:01:26]}  Rg2 {[%clk 0:00:14]} 35. Rf1 {[%clk 0:01:25]}  Be4 {[%clk 0:00:08]} 36. Rxf7 {[%clk 0:01:25]}  Rxc2+ {[%clk 0:00:08]} 37. Kd1 {[%clk 0:01:25]}  Rxb2 {[%clk 0:00:09]} 38. e6 {[%clk 0:01:26]}  Rxb8 {[%clk 0:00:08]} 39. e7 {[%clk 0:01:23]}  Re8 {[%clk 0:00:08]} 40. Rf4 {[%clk 0:01:21]}  Bd5 {[%clk 0:00:08]} 41. Rf6+ {[%clk 0:01:21]}  Kd7 {[%clk 0:00:08]} 42. Rxa6 {[%clk 0:01:22]}  Rxe7 {[%clk 0:00:08]} 43. Kd2 {[%clk 0:01:23]}  Re6 {[%clk 0:00:08]} 44. Kc3 {[%clk 0:01:23]}  Rxa6 {[%clk 0:00:08]} 45. a4 {[%clk 0:01:24]}  Rxa4 {[%clk 0:00:07]} 0-1

[Event "December 12 Early 2023"]
[Site "https://www.chess.com"]
[Date "2023.12.12"]
[Round "7"]
[White "Chlpik, Martin"]
[Black "Saravana, Krishnan P."]
[Result "0-1"]
[Board "74"]
[TimeControl "180+1"]
[WhiteFideId "14923351"]
[BlackFideId "5018382"]
[WhiteElo "2363"]
[BlackElo "2600"]
[WhiteTeam "SVK"]
[BlackTeam "IND"]
[WhiteClock "0:00:05"]
[BlackClock "0:01:13"]

1. d4 {[%clk 0:03:00]}  d5 {[%clk 0:02:59]} 2. c4 {[%clk 0:03:01]}  c6 {[%clk 0:02:59]} 3. Nf3 {[%clk 0:03:00]}  Nf6 {[%clk 0:02:59]} 4. Nc3 {[%clk 0:03:00]}  dxc4 {[%clk 0:02:59]} 5. g3 {[%clk 0:03:00]}  Bf5 {[%clk 0:02:54]} 6. Bg2 {[%clk 0:02:59]}  e6 {[%clk 0:02:55]} 7. O-O {[%clk 0:02:59]}  Bb4 {[%clk 0:02:55]} 8. Ne5 {[%clk 0:02:58]}  O-O {[%clk 0:02:50]} 9. Nxc4 {[%clk 0:02:58]}  Bg6 {[%clk 0:02:47]} 10. Ne5 {[%clk 0:02:44]}  Nbd7 {[%clk 0:02:46]} 11. Qb3 {[%clk 0:02:43]}  Bxc3 {[%clk 0:02:34]} 12. Nxg6 {[%clk 0:02:39]}  hxg6 {[%clk 0:02:31]} 13. bxc3 {[%clk 0:02:39]}  Qb6 {[%clk 0:02:25]} 14. e4 {[%clk 0:02:38]}  Rfe8 {[%clk 0:02:23]} 15. Rb1 {[%clk 0:02:36]}  Rac8 {[%clk 0:02:20]} 16. Be3 {[%clk 0:02:30]}  Qa6 {[%clk 0:02:19]} 17. Qxb7 {[%clk 0:02:24]}  Qxa2 {[%clk 0:02:19]} 18. Ra1 {[%clk 0:02:17]}  Qc4 {[%clk 0:02:17]} 19. Rfc1 {[%clk 0:02:09]}  e5 {[%clk 0:02:13]} 20. Qxa7 {[%clk 0:01:54]}  exd4 {[%clk 0:02:12]} 21. cxd4 {[%clk 0:01:54]}  Qe6 {[%clk 0:02:09]} 22. Ra6 {[%clk 0:01:19]}  Nb8 {[%clk 0:02:00]} 23. d5 {[%clk 0:01:14]}  Qe5 {[%clk 0:01:47]} 24. Bd4 {[%clk 0:01:08]}  Qg5 {[%clk 0:01:44]} 25. f4 {[%clk 0:01:08]}  Qh5 {[%clk 0:01:43]} 26. Bxf6 {[%clk 0:00:58]}  Nxa6 {[%clk 0:01:36]} 27. d6 {[%clk 0:00:57]}  Ra8 {[%clk 0:01:29]} 28. d7 {[%clk 0:00:40]}  Reb8 {[%clk 0:01:29]} 29. Qxb8+ {[%clk 0:00:17]}  Rxb8 {[%clk 0:01:23]} 30. Rxc6 {[%clk 0:00:15]}  Qd1+ {[%clk 0:01:13]} 31. Bf1 {[%clk 0:00:11]}  gxf6 {[%clk 0:01:13]} 32. Rc8+ {[%clk 0:00:05]}  Kg7 {[%clk 0:01:13]} 0-1

[Event "December 12 Early 2023"]
[Site "https://www.chess.com"]
[Date "2023.12.12"]
[Round "7"]
[White "Tay, Junior"]
[Black "Kamsky, Gata"]
[Result "0-1"]
[Board "76"]
[TimeControl "180+1"]
[WhiteFideId "5800439"]
[BlackFideId "2000024"]
[WhiteElo "2510"]
[BlackElo "2885"]
[WhiteTeam "SGP"]
[BlackTeam "USA"]
[WhiteClock "0:00:00"]
[BlackClock "0:00:13"]

1. e4 {[%clk 0:02:57]}  c5 {[%clk 0:02:57]} 2. Nf3 {[%clk 0:02:57]}  Nc6 {[%clk 0:02:55]} 3. b4 {[%clk 0:02:57]}  Nxb4 {[%clk 0:02:39]} 4. c3 {[%clk 0:02:57]}  Nc6 {[%clk 0:02:39]} 5. d4 {[%clk 0:02:58]}  d5 {[%clk 0:02:37]} 6. exd5 {[%clk 0:02:57]}  Qxd5 {[%clk 0:02:35]} 7. Nbd2 {[%clk 0:02:58]}  cxd4 {[%clk 0:02:32]} 8. Bc4 {[%clk 0:02:50]}  Qd8 {[%clk 0:02:25]} 9. cxd4 {[%clk 0:02:48]}  e6 {[%clk 0:02:23]} 10. O-O {[%clk 0:02:47]}  f6 {[%clk 0:02:22]} 11. Re1 {[%clk 0:02:45]}  Bb4 {[%clk 0:01:59]} 12. Bxe6 {[%clk 0:02:28]}  Bxe6 {[%clk 0:01:54]} 13. Rxe6+ {[%clk 0:02:29]}  Nge7 {[%clk 0:01:54]} 14. Qb3 {[%clk 0:02:17]}  Kf8 {[%clk 0:01:38]} 15. Ba3 {[%clk 0:02:10]}  Bxa3 {[%clk 0:01:29]} 16. Qxa3 {[%clk 0:02:09]}  Qa5 {[%clk 0:01:11]} 17. Qe3 {[%clk 0:01:57]}  Nd5 {[%clk 0:01:00]} 18. Qe4 {[%clk 0:01:47]}  Nc7 {[%clk 0:00:57]} 19. d5 {[%clk 0:00:37]}  Qxd5 {[%clk 0:00:54]} 20. Qxd5 {[%clk 0:00:34]}  Nxd5 {[%clk 0:00:52]} 21. Rd6 {[%clk 0:00:35]}  Nb6 {[%clk 0:00:45]} 22. Rb1 {[%clk 0:00:32]}  Ke7 {[%clk 0:00:43]} 23. Rd3 {[%clk 0:00:28]}  Rhd8 {[%clk 0:00:42]} 24. Re3+ {[%clk 0:00:28]}  Kf8 {[%clk 0:00:41]} 25. Ne4 {[%clk 0:00:29]}  Rd5 {[%clk 0:00:37]} 26. a4 {[%clk 0:00:23]}  Rad8 {[%clk 0:00:32]} 27. Ree1 {[%clk 0:00:19]}  Nxa4 {[%clk 0:00:25]} 28. Rxb7 {[%clk 0:00:18]}  Rd1 {[%clk 0:00:25]} 29. Kf1 {[%clk 0:00:17]}  Rxe1+ {[%clk 0:00:21]} 30. Kxe1 {[%clk 0:00:18]}  Re8 {[%clk 0:00:20]} 31. Nd2 {[%clk 0:00:14]}  Nc5 {[%clk 0:00:20]} 32. Rc7 {[%clk 0:00:13]}  Nxe4 {[%clk 0:00:20]} 33. Rxc6 {[%clk 0:00:13]}  Nxd2+ {[%clk 0:00:17]} 34. Kxd2 {[%clk 0:00:12]}  Rd8+ {[%clk 0:00:17]} 35. Kc3 {[%clk 0:00:12]}  Ke7 {[%clk 0:00:18]} 36. Ra6 {[%clk 0:00:10]}  Rd7 {[%clk 0:00:18]} 37. Kc4 {[%clk 0:00:11]}  Kd8 {[%clk 0:00:18]} 38. Kc5 {[%clk 0:00:11]}  Kc8 {[%clk 0:00:18]} 39. Kc6 {[%clk 0:00:12]}  Rb7 {[%clk 0:00:17]} 40. Kd6 {[%clk 0:00:09]}  Kb8 {[%clk 0:00:16]} 41. Ke6 {[%clk 0:00:09]}  Rb2 {[%clk 0:00:15]} 42. g4 {[%clk 0:00:04]}  Rxf2 {[%clk 0:00:15]} 43. h4 {[%clk 0:00:05]}  Rf4 {[%clk 0:00:14]} 44. g5 {[%clk 0:00:05]}  Rxh4 {[%clk 0:00:14]} 45. gxf6 {[%clk 0:00:04]}  Rh6 {[%clk 0:00:13]} 46. Ke7 {[%clk 0:00:00]}  Rxf6 {[%clk 0:00:13]} 0-1

[Event "December 12 Early 2023"]
[Site "https://www.chess.com"]
[Date "2023.12.12"]
[Round "7"]
[White "Herman, Matthew"]
[Black "Mikhailovsky, Vladimir"]
[Result "0-1"]
[Board "77"]
[TimeControl "180+1"]
[WhiteFideId "2028964"]
[BlackFideId "34105414"]
[WhiteElo "2505"]
[BlackElo "2785"]
[WhiteTeam "USA"]
[BlackTeam "RUS"]
[WhiteClock "0:00:00"]
[BlackClock "0:00:05"]

1. e4 {[%clk 0:03:00]}  c5 {[%clk 0:03:00]} 2. Nf3 {[%clk 0:03:01]}  e6 {[%clk 0:03:01]} 3. d4 {[%clk 0:03:01]}  cxd4 {[%clk 0:03:02]} 4. Nxd4 {[%clk 0:03:02]}  Nc6 {[%clk 0:03:02]} 5. Nc3 {[%clk 0:03:02]}  a6 {[%clk 0:03:02]} 6. Be3 {[%clk 0:03:02]}  Nf6 {[%clk 0:03:02]} 7. a3 {[%clk 0:02:56]}  d5 {[%clk 0:02:34]} 8. exd5 {[%clk 0:02:49]}  Nxd5 {[%clk 0:02:17]} 9. Nxd5 {[%clk 0:02:49]}  Qxd5 {[%clk 0:02:14]} 10. c4 {[%clk 0:02:47]}  Qe5 {[%clk 0:02:10]} 11. Be2 {[%clk 0:02:36]}  Bc5 {[%clk 0:01:41]} 12. Nxc6 {[%clk 0:01:59]}  bxc6 {[%clk 0:01:40]} 13. Bxc5 {[%clk 0:01:58]}  Qxc5 {[%clk 0:01:41]} 14. O-O {[%clk 0:01:49]}  O-O {[%clk 0:01:41]} 15. b4 {[%clk 0:01:42]}  Qe7 {[%clk 0:01:25]} 16. Bf3 {[%clk 0:01:34]}  Bd7 {[%clk 0:01:25]} 17. c5 {[%clk 0:01:25]}  Ra7 {[%clk 0:01:21]} 18. Re1 {[%clk 0:01:12]}  Rb8 {[%clk 0:01:17]} 19. Qd2 {[%clk 0:01:07]}  a5 {[%clk 0:01:16]} 20. Qc3 {[%clk 0:01:02]}  Be8 {[%clk 0:01:09]} 21. Rab1 {[%clk 0:00:49]}  Rab7 {[%clk 0:01:05]} 22. Re2 {[%clk 0:00:40]}  axb4 {[%clk 0:01:03]} 23. axb4 {[%clk 0:00:41]}  Qc7 {[%clk 0:00:51]} 24. Reb2 {[%clk 0:00:41]}  Qf4 {[%clk 0:00:52]} 25. g3 {[%clk 0:00:37]}  Qf5 {[%clk 0:00:53]} 26. Kg2 {[%clk 0:00:30]}  h5 {[%clk 0:00:48]} 27. h4 {[%clk 0:00:30]}  e5 {[%clk 0:00:47]} 28. Qc4 {[%clk 0:00:25]}  Bd7 {[%clk 0:00:45]} 29. Be4 {[%clk 0:00:23]}  Qh3+ {[%clk 0:00:37]} 30. Kg1 {[%clk 0:00:23]}  Qg4 {[%clk 0:00:35]} 31. Kg2 {[%clk 0:00:18]}  Be6 {[%clk 0:00:29]} 32. Qc2 {[%clk 0:00:14]}  Rc7 {[%clk 0:00:17]} 33. Bf3 {[%clk 0:00:10]}  Qh3+ {[%clk 0:00:13]} 34. Kg1 {[%clk 0:00:10]}  Rd8 {[%clk 0:00:12]} 35. Qc3 {[%clk 0:00:07]}  Rd4 {[%clk 0:00:12]} 36. Qe3 {[%clk 0:00:07]}  Qf5 {[%clk 0:00:11]} 37. Re1 {[%clk 0:00:06]}  f6 {[%clk 0:00:11]} 38. b5 {[%clk 0:00:05]}  cxb5 {[%clk 0:00:11]} 39. Rxb5 {[%clk 0:00:06]}  Bd5 {[%clk 0:00:11]} 40. Rb8+ {[%clk 0:00:06]}  Kh7 {[%clk 0:00:10]} 41. Bxd5 {[%clk 0:00:06]}  Rxd5 {[%clk 0:00:11]} 42. Rb5 {[%clk 0:00:05]}  Rd3 {[%clk 0:00:11]} 43. Qe2 {[%clk 0:00:04]}  Rc3 {[%clk 0:00:10]} 44. Rd1 {[%clk 0:00:03]}  Rc2 {[%clk 0:00:10]} 45. Qe3 {[%clk 0:00:03]}  Rc4 {[%clk 0:00:08]} 46. Rd8 {[%clk 0:00:02]}  Ra4 {[%clk 0:00:07]} 47. Rb2 {[%clk 0:00:02]}  Ra1+ {[%clk 0:00:07]} 48. Kg2 {[%clk 0:00:02]}  e4 {[%clk 0:00:04]} 49. Rbd2 {[%clk 0:00:03]}  Re7 {[%clk 0:00:04]} 50. R8d5 {[%clk 0:00:02]}  Qg4 {[%clk 0:00:04]} 51. R2d4 {[%clk 0:00:03]}  Ra2 {[%clk 0:00:02]} 52. c6 {[%clk 0:00:03]}  Re2 {[%clk 0:00:03]} 53. Qf4 {[%clk 0:00:03]}  Qxf4 {[%clk 0:00:02]} 54. gxf4 {[%clk 0:00:04]}  e3 {[%clk 0:00:03]} 55. Kf3 {[%clk 0:00:04]}  Rxf2+ {[%clk 0:00:03]} 56. Kg3 {[%clk 0:00:05]}  Rf1 {[%clk 0:00:04]} 57. Rd1 {[%clk 0:00:05]}  e2 {[%clk 0:00:05]} 58. Rxh5+ {[%clk 0:00:04]}  Kg6 {[%clk 0:00:04]} 59. f5+ {[%clk 0:00:00]}  Kxh5 {[%clk 0:00:05]} 0-1

[Event "December 12 Early 2023"]
[Site "https://www.chess.com"]
[Date "2023.12.12"]
[Round "7"]
[White "Korchmar, Vasiliy"]
[Black "Dinu, Dumitru-Daniel"]
[Result "1-0"]
[Board "78"]
[TimeControl "180+1"]
[WhiteFideId "24131750"]
[BlackFideId "1208403"]
[WhiteElo "2775"]
[BlackElo "2505"]
[WhiteTeam "RUS"]
[BlackTeam "ROU"]
[WhiteClock "0:00:56"]
[BlackClock "0:00:00"]

1. e4 {[%clk 0:03:00]}  c5 {[%clk 0:02:57]} 2. d4 {[%clk 0:03:00]}  cxd4 {[%clk 0:02:56]} 3. Qxd4 {[%clk 0:03:01]}  Nc6 {[%clk 0:02:55]} 4. Qd3 {[%clk 0:03:02]}  g6 {[%clk 0:02:50]} 5. Nc3 {[%clk 0:03:01]}  Bg7 {[%clk 0:02:50]} 6. Nf3 {[%clk 0:03:01]}  d6 {[%clk 0:02:50]} 7. Be2 {[%clk 0:03:02]}  Nf6 {[%clk 0:02:50]} 8. O-O {[%clk 0:03:02]}  O-O {[%clk 0:02:51]} 9. Nd5 {[%clk 0:03:03]}  Bg4 {[%clk 0:02:43]} 10. c3 {[%clk 0:03:02]}  Rc8 {[%clk 0:02:28]} 11. Bg5 {[%clk 0:03:01]}  e6 {[%clk 0:01:56]} 12. Nxf6+ {[%clk 0:02:50]}  Bxf6 {[%clk 0:01:57]} 13. Bxf6 {[%clk 0:02:51]}  Qxf6 {[%clk 0:01:58]} 14. Qxd6 {[%clk 0:02:52]}  Bxf3 {[%clk 0:01:53]} 15. Bxf3 {[%clk 0:02:51]}  Rfd8 {[%clk 0:01:52]} 16. Qg3 {[%clk 0:02:49]}  Rd2 {[%clk 0:01:51]} 17. Rab1 {[%clk 0:02:44]}  Ne5 {[%clk 0:01:47]} 18. Rfd1 {[%clk 0:02:43]}  Rcd8 {[%clk 0:01:46]} 19. Rxd2 {[%clk 0:02:22]}  Rxd2 {[%clk 0:01:45]} 20. h3 {[%clk 0:02:18]}  Rd3 {[%clk 0:01:33]} 21. Re1 {[%clk 0:02:07]}  Nxf3+ {[%clk 0:00:47]} 22. gxf3 {[%clk 0:02:07]}  Rxf3 {[%clk 0:00:45]} 23. Qg2 {[%clk 0:02:06]}  Qf4 {[%clk 0:00:38]} 24. Rd1 {[%clk 0:02:02]}  Qxe4 {[%clk 0:00:32]} 25. Qg4 {[%clk 0:01:59]}  Rf4 {[%clk 0:00:23]} 26. Qg5 {[%clk 0:01:56]}  Kg7 {[%clk 0:00:19]} 27. Qc5 {[%clk 0:01:42]}  Rf5 {[%clk 0:00:16]} 28. Qd4+ {[%clk 0:01:41]}  Qxd4 {[%clk 0:00:17]} 29. Rxd4 {[%clk 0:01:42]}  Rb5 {[%clk 0:00:17]} 30. b4 {[%clk 0:01:40]}  Rd5 {[%clk 0:00:18]} 31. Rc4 {[%clk 0:01:40]}  Rd7 {[%clk 0:00:15]} 32. Rc8 {[%clk 0:01:39]}  Kf6 {[%clk 0:00:14]} 33. c4 {[%clk 0:01:36]}  Ke7 {[%clk 0:00:13]} 34. c5 {[%clk 0:01:35]}  Kf6 {[%clk 0:00:10]} 35. a3 {[%clk 0:01:29]}  e5 {[%clk 0:00:07]} 36. Re8 {[%clk 0:01:25]}  Kf5 {[%clk 0:00:07]} 37. Kg2 {[%clk 0:01:25]}  f6 {[%clk 0:00:07]} 38. Rc8 {[%clk 0:01:15]}  g5 {[%clk 0:00:07]} 39. b5 {[%clk 0:01:15]}  Rd5 {[%clk 0:00:07]} 40. a4 {[%clk 0:01:14]}  a6 {[%clk 0:00:03]} 41. c6 {[%clk 0:01:10]}  bxc6 {[%clk 0:00:03]} 42. b6 {[%clk 0:01:11]}  Rd7 {[%clk 0:00:00]} 43. a5 {[%clk 0:00:56]} 1-0